Workbook

Sheet סקירת המסיבה
A1: הזן פריטים בודדים בגליונות 'מזון ומשקאות' ו'דברים חיוניים אחרים' כדי לחשב אוטומטית את העלות הכוללת.
B3: סקירת המסיבה
B6: אירוע | D6: סיכום אורחים | H6: ="אישורי הגעה שטרם התקבלו: "&OutstandingRSVPs -> אישורי הגעה שטרם התקבלו: 2
B7: יום הולדת 75 לסבתא | D7: סקירת פרטים לאישור הגעה | F7: עלות לכל אורח | H7: סכום תקציב
D8: אורחים שאושרו | E8: סה"כ שאישרו | F8: אוכל | G8: אחר | H8: סך הכל
B9: תאריך | D9: מבוגרים | E9: =SUMIF(GuestTable[מגיע?],"=כן",GuestTable[מבוגרים]) -> 26 | F9: =FoodTable[[#Totals],[עלות לכל מבוגר]] -> ₪ 12.69 | G9: =EssentialCostPerGuest -> ₪ 18.70 | H9: =(AttendeeSummary[[#This Row],[אוכל]]+AttendeeSummary[[#This Row],[אחר]])*AdultTotal -> ₪ 816.03
B10: 2011-07-14 | D10: ילדים | E10: =SUMIF(GuestTable[מגיע?],"=כן",GuestTable[ילדים]) -> 20 | F10: =FoodTable[[#Totals],[עלות לכל ילד]] -> ₪ 7.25 | G10: =EssentialCostPerGuest -> ₪ 18.70 | H10: =(AttendeeSummary[[#This Row],[אוכל]]+AttendeeSummary[[#This Row],[אחר]])*ChildrenTotal -> ₪ 518.97
D11: סך הכל | E11: =SUBTOTAL(109,AttendeeSummary[סה"כ שאישרו]) -> 46 | F11: ="ממוצע "&TEXT(SUBTOTAL(101,AttendeeSummary[אוכל]),"₪ #,##0.00") -> ממוצע ₪ 9.97 | G11: ="ממוצע "&TEXT(SUBTOTAL(101,AttendeeSummary[אחר]),"₪ #,##0.00") -> ממוצע ₪ 18.70 | H11: =SUBTOTAL(109,AttendeeSummary[סך הכל]) -> ₪ 1,335.00
B12: שעה
B13: 14:00 עד 16:00
B15: מיקום
B16: הבית של דודה אסתר | D16: סיכום תקציב
D17: פריט | E17: ספירה | F17: סכום תקציב | G17: עלות כוללת | H17: הפרש
D18: מזון ומשקאות | E18: =COUNTA(FoodTable[פריט מזון או משקה]) -> 18 | F18: ₪ 500.00 | G18: =FoodTable[[#Totals],[עלות כוללת]] -> ₪ 475.00 | H18: =BudgetOverview[[#This Row],[סכום תקציב]]-BudgetOverview[[#This Row],[עלות כוללת]] -> ₪ 25.00
D19: =Table1Header -> ציוד וחומרים | E19: =COUNTA(Table1Budget[ציוד וחומרים]) -> 7 | F19: ₪ 400.00 | G19: =Table1Budget[[#Totals],[עלות]] -> ₪ 400.00 | H19: =BudgetOverview[[#This Row],[סכום תקציב]]-BudgetOverview[[#This Row],[עלות כוללת]] -> ₪ 0.00
D20: =Table2Header -> קישוטים | E20: =COUNTA(Table2Budget[קישוטים]) -> 4 | F20: ₪ 150.00 | G20: =Table2Budget[[#Totals],[עלות]] -> ₪ 175.00 | H20: =BudgetOverview[[#This Row],[סכום תקציב]]-BudgetOverview[[#This Row],[עלות כוללת]] -> ₪ -25.00
D21: =Table3Header -> אחר | E21: =COUNTA(Table3Budget[אחר]) -> 4 | F21: ₪ 300.00 | G21: =Table3Budget[[#Totals],[עלות]] -> ₪ 285.00 | H21: =BudgetOverview[[#This Row],[סכום תקציב]]-BudgetOverview[[#This Row],[עלות כוללת]] -> ₪ 15.00
D22: סך הכל | E22: =SUBTOTAL(109,BudgetOverview[ספירה]) -> 33 | F22: =SUBTOTAL(109,BudgetOverview[סכום תקציב]) -> ₪ 1,350.00 | G22: =SUBTOTAL(109,BudgetOverview[עלות כוללת]) -> ₪ 1,335.00 | H22: =BudgetOverview[[#Totals],[סכום תקציב]]-BudgetOverview[[#Totals],[עלות כוללת]] -> ₪ 15.00

Sheet רשימת אורחים
B3: רשימת אורחים
B7: שם | C7: כתובת | D7: עיר | E7: מדינה | F7: מיקוד | G7: טלפון | H7: דואר אלקטרוני | I7: מגיע? | J7: ילדים | K7: מבוגרים | L7: סך הכל
B8: משפחה 1 | C8: כתובת 1 | D8: עיר 1 | E8: מדינה 1 | F8: מיקוד 1 | G8: טלפון 1 | H8: דואר אלקטרוני 1 | I8: לא | J8: 2 | K8: 2 | L8: =SUM(GuestTable[[#This Row],[ילדים]:[מבוגרים]]) -> 4
B9: משפחה 2 | C9: כתובת 2 | D9: עיר 2 | E9: מדינה 2 | F9: מיקוד 2 | G9: טלפון 2 | H9: דואר אלקטרוני 2 | I9: כן | J9: 1 | K9: 1 | L9: =SUM(GuestTable[[#This Row],[ילדים]:[מבוגרים]]) -> 2
B10: משפחה 3 | C10: כתובת 3 | D10: עיר 3 | E10: מדינה 3 | F10: מיקוד 3 | G10: טלפון 3 | H10: דואר אלקטרוני 3 | I10: כן | J10: 3 | K10: 3 | L10: =SUM(GuestTable[[#This Row],[ילדים]:[מבוגרים]]) -> 6
B11: משפחה 4 | C11: כתובת 4 | D11: עיר 4 | E11: מדינה 4 | F11: מיקוד 4 | G11: טלפון 4 | H11: דואר אלקטרוני 4 | K11: 2 | L11: =SUM(GuestTable[[#This Row],[ילדים]:[מבוגרים]]) -> 2
B12: משפחה 5 | C12: כתובת 5 | D12: עיר 5 | E12: מדינה 5 | F12: מיקוד 5 | G12: טלפון 5 | H12: דואר אלקטרוני 5 | I12: כן | J12: 4 | K12: 3 | L12: =SUM(GuestTable[[#This Row],[ילדים]:[מבוגרים]]) -> 7
B13: משפחה 6 | C13: כתובת 6 | D13: עיר 6 | E13: מדינה 6 | F13: מיקוד 6 | G13: טלפון 6 | H13: דואר אלקטרוני 6 | I13: כן | J13: 2 | K13: 2 | L13: =SUM(GuestTable[[#This Row],[ילדים]:[מבוגרים]]) -> 4
B14: משפחה 7 | C14: כתובת 7 | D14: עיר 7 | E14: מדינה 7 | F14: מיקוד 7 | G14: טלפון 7 | H14: דואר אלקטרוני 7 | I14: כן | J14: 1 | K14: 4 | L14: =SUM(GuestTable[[#This Row],[ילדים]:[מבוגרים]]) -> 5
B15: משפחה 8 | C15: כתובת 8 | D15: עיר 8 | E15: מדינה 8 | F15: מיקוד 8 | G15: טלפון 8 | H15: דואר אלקטרוני 8 | I15: לא | J15: 5 | K15: 3 | L15: =SUM(GuestTable[[#This Row],[ילדים]:[מבוגרים]]) -> 8
B16: משפחה 9 | C16: כתובת 9 | D16: עיר 9 | E16: מדינה 9 | F16: מיקוד 9 | G16: טלפון 9 | H16: דואר אלקטרוני 9 | I16: כן | J16: 3 | K16: 2 | L16: =SUM(GuestTable[[#This Row],[ילדים]:[מבוגרים]]) -> 5
B17: משפחה 10 | C17: כתובת 10 | D17: עיר 10 | E17: מדינה 10 | F17: מיקוד 10 | G17: טלפון 10 | H17: דואר אלקטרוני 10 | I17: כן | K17: 4 | L17: =SUM(GuestTable[[#This Row],[ילדים]:[מבוגרים]]) -> 4
B18: משפחה 11 | C18: כתובת 11 | D18: עיר 11 | E18: מדינה 11 | F18: מיקוד 11 | G18: טלפון 11 | H18: דואר אלקטרוני 11 | I18: כן | J18: 3 | K18: 5 | L18: =SUM(GuestTable[[#This Row],[ילדים]:[מבוגרים]]) -> 8
B19: משפחה 12 | C19: כתובת 12 | D19: עיר 12 | E19: מדינה 12 | F19: מיקוד 12 | G19: טלפון 12 | H19: דואר אלקטרוני 12 | I19: לא | J19: 2 | K19: 3 | L19: =SUM(GuestTable[[#This Row],[ילדים]:[מבוגרים]]) -> 5
B20: משפחה 13 | C20: כתובת 13 | D20: עיר 13 | E20: מדינה 13 | F20: מיקוד 13 | G20: טלפון 13 | H20: דואר אלקטרוני 13 | I20: כן | J20: 3 | K20: 2 | L20: =SUM(GuestTable[[#This Row],[ילדים]:[מבוגרים]]) -> 5
B21: משפחה 14 | C21: כתובת 14 | D21: עיר 14 | E21: מדינה 14 | F21: מיקוד 14 | G21: טלפון 14 | H21: דואר אלקטרוני 14 | I21: לא | K21: 1 | L21: =SUM(GuestTable[[#This Row],[ילדים]:[מבוגרים]]) -> 1
B22: משפחה 15 | C22: כתובת 15 | D22: עיר 15 | E22: מדינה 15 | F22: מיקוד 15 | G22: טלפון 15 | H22: דואר אלקטרוני 15 | K22: 2 | L22: =SUM(GuestTable[[#This Row],[ילדים]:[מבוגרים]]) -> 2

Sheet מזון ומשקאות
B3: מזון ומשקאות
B5: הזן עלות ומס' משוער של מנות על-מנת לחשב באופן אוטומטי את מספר המנות הכולל ועלות למנה בהתבסס על מספר המשתתפים
B6: פריט מזון או משקה | C6: עלות כוללת | D6: מנות לכל ילד | E6: מנות לכל מבוגר | F6: סה"כ מנות | G6: עלות לכל מנה | H6: עלות לכל ילד | I6: עלות לכל מבוגר | J6: הערות
B7: משקאות מוגזים | C7: ₪ 15.00 | D7: 0.5 | E7: 2 | F7: =(FoodTable[[#This Row],[מנות לכל ילד]]*ChildrenTotal)+(FoodTable[[#This Row],[מנות לכל מבוגר]]*AdultTotal) -> 62 | G7: =IFERROR(FoodTable[[#This Row],[עלות כוללת]]/FoodTable[[#This Row],[סה"כ מנות]],"") -> ₪ 0.24 | H7: =IFERROR(FoodTable[[#This Row],[עלות לכל מנה]]*FoodTable[[#This Row],[מנות לכל ילד]],"") -> ₪ 0.12 | I7: =IFERROR(FoodTable[[#This Row],[עלות לכל מנה]]*FoodTable[[#This Row],[מנות לכל מבוגר]],"") -> ₪ 0.48 | J7: 2 בקבוקי ליטר
B8: בקבוקי מיץ | C8: ₪ 15.00 | D8: 2 | E8: 0 | F8: =(FoodTable[[#This Row],[מנות לכל ילד]]*ChildrenTotal)+(FoodTable[[#This Row],[מנות לכל מבוגר]]*AdultTotal) -> 40 | G8: =IFERROR(FoodTable[[#This Row],[עלות כוללת]]/FoodTable[[#This Row],[סה"כ מנות]],"") -> ₪ 0.38 | H8: =IFERROR(FoodTable[[#This Row],[עלות לכל מנה]]*FoodTable[[#This Row],[מנות לכל ילד]],"") -> ₪ 0.75 | I8: =IFERROR(FoodTable[[#This Row],[עלות לכל מנה]]*FoodTable[[#This Row],[מנות לכל מבוגר]],"") -> ₪ 0.00 | J8: תפוחים וענבים
B9: יין | C9: ₪ 50.00 | D9: 0 | E9: 2 | F9: =(FoodTable[[#This Row],[מנות לכל ילד]]*ChildrenTotal)+(FoodTable[[#This Row],[מנות לכל מבוגר]]*AdultTotal) -> 52 | G9: =IFERROR(FoodTable[[#This Row],[עלות כוללת]]/FoodTable[[#This Row],[סה"כ מנות]],"") -> ₪ 0.96 | H9: =IFERROR(FoodTable[[#This Row],[עלות לכל מנה]]*FoodTable[[#This Row],[מנות לכל ילד]],"") -> ₪ 0.00 | I9: =IFERROR(FoodTable[[#This Row],[עלות לכל מנה]]*FoodTable[[#This Row],[מנות לכל מבוגר]],"") -> ₪ 1.92
B10: עוגה | C10: ₪ 75.00 | D10: 1 | E10: 1 | F10: =(FoodTable[[#This Row],[מנות לכל ילד]]*ChildrenTotal)+(FoodTable[[#This Row],[מנות לכל מבוגר]]*AdultTotal) -> 46 | G10: =IFERROR(FoodTable[[#This Row],[עלות כוללת]]/FoodTable[[#This Row],[סה"כ מנות]],"") -> ₪ 1.63 | H10: =IFERROR(FoodTable[[#This Row],[עלות לכל מנה]]*FoodTable[[#This Row],[מנות לכל ילד]],"") -> ₪ 1.63 | I10: =IFERROR(FoodTable[[#This Row],[עלות לכל מנה]]*FoodTable[[#This Row],[מנות לכל מבוגר]],"") -> ₪ 1.63 | J10: להזמין מהמאפיה המקומית
B11: גלידה | C11: ₪ 20.00 | D11: 1 | E11: 1.5 | F11: =(FoodTable[[#This Row],[מנות לכל ילד]]*ChildrenTotal)+(FoodTable[[#This Row],[מנות לכל מבוגר]]*AdultTotal) -> 59 | G11: =IFERROR(FoodTable[[#This Row],[עלות כוללת]]/FoodTable[[#This Row],[סה"כ מנות]],"") -> ₪ 0.34 | H11: =IFERROR(FoodTable[[#This Row],[עלות לכל מנה]]*FoodTable[[#This Row],[מנות לכל ילד]],"") -> ₪ 0.34 | I11: =IFERROR(FoodTable[[#This Row],[עלות לכל מנה]]*FoodTable[[#This Row],[מנות לכל מבוגר]],"") -> ₪ 0.51
B12: גביעי פודינג | C12: ₪ 15.00 | D12: 1 | E12: 0 | F12: =(FoodTable[[#This Row],[מנות לכל ילד]]*ChildrenTotal)+(FoodTable[[#This Row],[מנות לכל מבוגר]]*AdultTotal) -> 20 | G12: =IFERROR(FoodTable[[#This Row],[עלות כוללת]]/FoodTable[[#This Row],[סה"כ מנות]],"") -> ₪ 0.75 | H12: =IFERROR(FoodTable[[#This Row],[עלות לכל מנה]]*FoodTable[[#This Row],[מנות לכל ילד]],"") -> ₪ 0.75 | I12: =IFERROR(FoodTable[[#This Row],[עלות לכל מנה]]*FoodTable[[#This Row],[מנות לכל מבוגר]],"") -> ₪ 0.00 | J12: לרכוש כוסות באריזה: וניל ושוקולד
B13: פטריות ממולאות | C13: ₪ 32.00 | D13: 1 | E13: 2 | F13: =(FoodTable[[#This Row],[מנות לכל ילד]]*ChildrenTotal)+(FoodTable[[#This Row],[מנות לכל מבוגר]]*AdultTotal) -> 72 | G13: =IFERROR(FoodTable[[#This Row],[עלות כוללת]]/FoodTable[[#This Row],[סה"כ מנות]],"") -> ₪ 0.44 | H13: =IFERROR(FoodTable[[#This Row],[עלות לכל מנה]]*FoodTable[[#This Row],[מנות לכל ילד]],"") -> ₪ 0.44 | I13: =IFERROR(FoodTable[[#This Row],[עלות לכל מנה]]*FoodTable[[#This Row],[מנות לכל מבוגר]],"") -> ₪ 0.89 | J13: פטריות קטנות ממולאות גבינת שמנת ונקניקיות
B14: ברוסקטה | C14: ₪ 22.00 | D14: 0 | E14: 3 | F14: =(FoodTable[[#This Row],[מנות לכל ילד]]*ChildrenTotal)+(FoodTable[[#This Row],[מנות לכל מבוגר]]*AdultTotal) -> 78 | G14: =IFERROR(FoodTable[[#This Row],[עלות כוללת]]/FoodTable[[#This Row],[סה"כ מנות]],"") -> ₪ 0.28 | H14: =IFERROR(FoodTable[[#This Row],[עלות לכל מנה]]*FoodTable[[#This Row],[מנות לכל ילד]],"") -> ₪ 0.00 | I14: =IFERROR(FoodTable[[#This Row],[עלות לכל מנה]]*FoodTable[[#This Row],[מנות לכל מבוגר]],"") -> ₪ 0.85 | J14: עגבניות ובזיליקום
B15: סלמון מעושן | C15: ₪ 50.00 | D15: 1 | E15: 2 | F15: =(FoodTable[[#This Row],[מנות לכל ילד]]*ChildrenTotal)+(FoodTable[[#This Row],[מנות לכל מבוגר]]*AdultTotal) -> 72 | G15: =IFERROR(FoodTable[[#This Row],[עלות כוללת]]/FoodTable[[#This Row],[סה"כ מנות]],"") -> ₪ 0.69 | H15: =IFERROR(FoodTable[[#This Row],[עלות לכל מנה]]*FoodTable[[#This Row],[מנות לכל ילד]],"") -> ₪ 0.69 | I15: =IFERROR(FoodTable[[#This Row],[עלות לכל מנה]]*FoodTable[[#This Row],[מנות לכל מבוגר]],"") -> ₪ 1.39
B16: מיני בייגל | C16: ₪ 20.00 | D16: 1 | E16: 2 | F16: =(FoodTable[[#This Row],[מנות לכל ילד]]*ChildrenTotal)+(FoodTable[[#This Row],[מנות לכל מבוגר]]*AdultTotal) -> 72 | G16: =IFERROR(FoodTable[[#This Row],[עלות כוללת]]/FoodTable[[#This Row],[סה"כ מנות]],"") -> ₪ 0.28 | H16: =IFERROR(FoodTable[[#This Row],[עלות לכל מנה]]*FoodTable[[#This Row],[מנות לכל ילד]],"") -> ₪ 0.28 | I16: =IFERROR(FoodTable[[#This Row],[עלות לכל מנה]]*FoodTable[[#This Row],[מנות לכל מבוגר]],"") -> ₪ 0.56 | J16: 4 שקיות - מעורב
B17: גבינת שמנת | C17: ₪ 10.00 | D17: 1 | E17: 2 | F17: =(FoodTable[[#This Row],[מנות לכל ילד]]*ChildrenTotal)+(FoodTable[[#This Row],[מנות לכל מבוגר]]*AdultTotal) -> 72 | G17: =IFERROR(FoodTable[[#This Row],[עלות כוללת]]/FoodTable[[#This Row],[סה"כ מנות]],"") -> ₪ 0.14 | H17: =IFERROR(FoodTable[[#This Row],[עלות לכל מנה]]*FoodTable[[#This Row],[מנות לכל ילד]],"") -> ₪ 0.14 | I17: =IFERROR(FoodTable[[#This Row],[עלות לכל מנה]]*FoodTable[[#This Row],[מנות לכל מבוגר]],"") -> ₪ 0.28 | J17: 2 שפופרות גדולות
B18: צלפים | C18: ₪ 12.00 | D18: 1 | E18: 2 | F18: =(FoodTable[[#This Row],[מנות לכל ילד]]*ChildrenTotal)+(FoodTable[[#This Row],[מנות לכל מבוגר]]*AdultTotal) -> 72 | G18: =IFERROR(FoodTable[[#This Row],[עלות כוללת]]/FoodTable[[#This Row],[סה"כ מנות]],"") -> ₪ 0.17 | H18: =IFERROR(FoodTable[[#This Row],[עלות לכל מנה]]*FoodTable[[#This Row],[מנות לכל ילד]],"") -> ₪ 0.17 | I18: =IFERROR(FoodTable[[#This Row],[עלות לכל מנה]]*FoodTable[[#This Row],[מנות לכל מבוגר]],"") -> ₪ 0.33 | J18: 3 צנצנות
B19: כנפיים | C19: ₪ 45.00 | D19: 2 | E19: 4 | F19: =(FoodTable[[#This Row],[מנות לכל ילד]]*ChildrenTotal)+(FoodTable[[#This Row],[מנות לכל מבוגר]]*AdultTotal) -> 144 | G19: =IFERROR(FoodTable[[#This Row],[עלות כוללת]]/FoodTable[[#This Row],[סה"כ מנות]],"") -> ₪ 0.31 | H19: =IFERROR(FoodTable[[#This Row],[עלות לכל מנה]]*FoodTable[[#This Row],[מנות לכל ילד]],"") -> ₪ 0.63 | I19: =IFERROR(FoodTable[[#This Row],[עלות לכל מנה]]*FoodTable[[#This Row],[מנות לכל מבוגר]],"") -> ₪ 1.25 | J19: לקנות מהקצביה המקומית
B20: חומוס | C20: ₪ 10.00 | D20: 4 | E20: 6 | F20: =(FoodTable[[#This Row],[מנות לכל ילד]]*ChildrenTotal)+(FoodTable[[#This Row],[מנות לכל מבוגר]]*AdultTotal) -> 236 | G20: =IFERROR(FoodTable[[#This Row],[עלות כוללת]]/FoodTable[[#This Row],[סה"כ מנות]],"") -> ₪ 0.04 | H20: =IFERROR(FoodTable[[#This Row],[עלות לכל מנה]]*FoodTable[[#This Row],[מנות לכל ילד]],"") -> ₪ 0.17 | I20: =IFERROR(FoodTable[[#This Row],[עלות לכל מנה]]*FoodTable[[#This Row],[מנות לכל מבוגר]],"") -> ₪ 0.25 | J20: להכין לילה לפני
B21: פיתות אפויות עם פרמז'ן | C21: ₪ 14.00 | D21: 4 | E21: 6 | F21: =(FoodTable[[#This Row],[מנות לכל ילד]]*ChildrenTotal)+(FoodTable[[#This Row],[מנות לכל מבוגר]]*AdultTotal) -> 236 | G21: =IFERROR(FoodTable[[#This Row],[עלות כוללת]]/FoodTable[[#This Row],[סה"כ מנות]],"") -> ₪ 0.06 | H21: =IFERROR(FoodTable[[#This Row],[עלות לכל מנה]]*FoodTable[[#This Row],[מנות לכל ילד]],"") -> ₪ 0.24 | I21: =IFERROR(FoodTable[[#This Row],[עלות לכל מנה]]*FoodTable[[#This Row],[מנות לכל מבוגר]],"") -> ₪ 0.36 | J21: להכין לילה לפני
B22: ירקות | C22: ₪ 30.00 | D22: 4 | E22: 10 | F22: =(FoodTable[[#This Row],[מנות לכל ילד]]*ChildrenTotal)+(FoodTable[[#This Row],[מנות לכל מבוגר]]*AdultTotal) -> 340 | G22: =IFERROR(FoodTable[[#This Row],[עלות כוללת]]/FoodTable[[#This Row],[סה"כ מנות]],"") -> ₪ 0.09 | H22: =IFERROR(FoodTable[[#This Row],[עלות לכל מנה]]*FoodTable[[#This Row],[מנות לכל ילד]],"") -> ₪ 0.35 | I22: =IFERROR(FoodTable[[#This Row],[עלות לכל מנה]]*FoodTable[[#This Row],[מנות לכל מבוגר]],"") -> ₪ 0.88 | J22: מקלות גזר, סלרי, ברוקולי, כרובית, פלפלים אדומים וירוקים
B23: כדורי גבינה | C23: ₪ 15.00 | D23: 5 | E23: 10 | F23: =(FoodTable[[#This Row],[מנות לכל ילד]]*ChildrenTotal)+(FoodTable[[#This Row],[מנות לכל מבוגר]]*AdultTotal) -> 360 | G23: =IFERROR(FoodTable[[#This Row],[עלות כוללת]]/FoodTable[[#This Row],[סה"כ מנות]],"") -> ₪ 0.04 | H23: =IFERROR(FoodTable[[#This Row],[עלות לכל מנה]]*FoodTable[[#This Row],[מנות לכל ילד]],"") -> ₪ 0.21 | I23: =IFERROR(FoodTable[[#This Row],[עלות לכל מנה]]*FoodTable[[#This Row],[מנות לכל מבוגר]],"") -> ₪ 0.42 | J23: מעורב: גבינת שמנת, גבינה קשה עם אגוזים
B24: קרקרים | C24: ₪ 25.00 | D24: 5 | E24: 10 | F24: =(FoodTable[[#This Row],[מנות לכל ילד]]*ChildrenTotal)+(FoodTable[[#This Row],[מנות לכל מבוגר]]*AdultTotal) -> 360 | G24: =IFERROR(FoodTable[[#This Row],[עלות כוללת]]/FoodTable[[#This Row],[סה"כ מנות]],"") -> ₪ 0.07 | H24: =IFERROR(FoodTable[[#This Row],[עלות לכל מנה]]*FoodTable[[#This Row],[מנות לכל ילד]],"") -> ₪ 0.35 | I24: =IFERROR(FoodTable[[#This Row],[עלות לכל מנה]]*FoodTable[[#This Row],[מנות לכל מבוגר]],"") -> ₪ 0.69 | J24: מעורב
B25: סך הכל | C25: =SUBTOTAL(109,FoodTable[עלות כוללת]) -> ₪ 475.00 | D25: =SUBTOTAL(109,FoodTable[מנות לכל ילד]) -> 34.5 | E25: =SUBTOTAL(109,FoodTable[מנות לכל מבוגר]) -> 65.5 | F25: =SUBTOTAL(109,FoodTable[סה"כ מנות]) -> 2393 | G25: =SUBTOTAL(109,FoodTable[עלות לכל מנה]) -> ₪ 6.92 | H25: =SUBTOTAL(109,FoodTable[עלות לכל ילד]) -> ₪ 7.25 | I25: =SUBTOTAL(109,FoodTable[עלות לכל מבוגר]) -> ₪ 12.69

Sheet דברים חיוניים אחרים
B3: דברים חיוניים אחרים
B6: ציוד וחומרים | C6: עלות | D6: נרכש | E6: הערות
B7: השכרת חדר/אולם | C7: ₪ 250.00 | D7: כן
B8: מפות | C8: ₪ 30.00 | D8: כן | E8: שכירות
B9: שולחנות וכיסאות | C9: ₪ 0.00 | E9: כלול בהשכרת האולם
B10: מפיות למשקאות | C10: ₪ 25.00
B11: מפיות לארוחה | C11: ₪ 20.00 | E11: שכירות
B12: סכו"ם | C12: ₪ 50.00 | E12: שכירות
B13: כלי זכוכית | C13: ₪ 25.00 | E13: שכירות
B14: סך הכל | C14: =SUBTOTAL(109,Table1Budget[עלות]) -> ₪ 400.00
B18: קישוטים | C18: עלות | D18: נרכש | E18: הערות
B19: בלונים | C19: ₪ 25.00
B20: מכל הליום | C20: ₪ 50.00 | E20: שכירות
B21: קישוטים מרכזיים | C21: ₪ 100.00 | D21: כן | E21: 10 סה"כ
B22: אגרטלי זכוכית | C22: ₪ 0.00 | E22: להלוות מסיגל
B23: סך הכל | C23: =SUBTOTAL(109,Table2Budget[עלות]) -> ₪ 175.00
B27: אחר | C27: עלות | D27: נרכש | E27: הערות
B28: הזמנות | C28: ₪ 50.00 | D28: כן
B29: דברי דואר | C29: ₪ 60.00 | D29: כן
B30: צלם | C30: ₪ 125.00 | E30: שעתיים (14:00 עד 16:00)
B31: מתנות לאורחים | C31: ₪ 50.00
B32: סך הכל | C32: =SUBTOTAL(109,Table3Budget[עלות]) -> ₪ 285.00

Sheet סידור ישיבה
A1: סידור ישיבה
AH35: *ריבוע אחד שווה לכמטר רבוע אחד
A36: הערות | Q36: =" סהכ אורחים שאישרו את הגעתם: "&ConfirmedGuests -> סהכ אורחים שאישרו את הגעתם: 46
Q37: ניתן להשתמש בכל אחד מארגוני השולחן הבאים:
R38: ="שולחנות עגולים של "&ROUNDUP(ConfirmedGuests/6,0)&" 1.35 מ' (6 כיסאות)" -> שולחנות עגולים של 8 1.35 מ' (6 כיסאות)
R39: ="שולחנות עגולים של "&ROUNDUP(ConfirmedGuests/8,0) &" מטר וחצי (8 כיסאות)" -> שולחנות עגולים של 6 מטר וחצי (8 כיסאות)
R40: =" שולחנות עגולים של "&ROUNDUP(ConfirmedGuests/10,0)&" 1.8 מ' (10 כיסאות)" -> שולחנות עגולים של 5 1.8 מ' (10 כיסאות)
R41: ="שולחנות מרובעים "&ROUNDUP(ConfirmedGuests/6,0)& " בגודל 0.75 מ' על 1.8 מ' (6 כיסאות)" -> שולחנות מרובעים 8 בגודל 0.75 מ' על 1.8 מ' (6 כיסאות)
R42: ="שולחנות מרובעים "&ROUNDUP(ConfirmedGuests/8,0)&" בגודל 0.75 מ' על 2.4 מ' (8 כיסאות)" -> שולחנות מרובעים 6 בגודל 0.75 מ' על 2.4 מ' (8 כיסאות)
Q43: (רווח מומלץ בין השולחנות: 1.5 מ')
